bitfinex-derivatives/quotes_BNBF0:USTF0_20230831
["timestamp","ask_amount","ask_price","bid_price","bid_amount"]
[1693499640721,0.83572074,220.08,219.52,0.1885062]
[1693499641020,0.83572074,220.07,219.53,0.1885062]
[1693499641221,0.83572074,220.08,219.5,0.1885062]
[1693499641521,0.83572074,220.07,219.51,0.1885062]
[1693499641721,0.0732123,220.09,219.49,0.07424437]
[1693499641722,0.83572074,220.08,219.5,0.1885062]
[1693499641921,0.83572074,220.07,219.51,0.1885062]
[1693499642222,0.83572074,220.06,219.52,0.1885062]
[1693499642421,0.83572074,220.09,219.48,0.1885062]
[1693499642722,0.83572074,220.08,219.49,0.1885062]
[1693499642920,0.83572074,220.11,219.48,0.26275057]
[1693499643121,0.83572074,220.1,219.49,0.1885062]
[1693499643421,0.83572074,220.09,219.49,0.1885062]
[1693499643622,0.83572074,220.09,219.47,0.07424437]
[1693499643623,0.83572074,220.1,219.48,0.1885062]
[1693499643921,0.83572074,220.09,219.49,0.1885062]
[1693499644120,0.83572074,220.1,219.46,0.1885062]
[1693499644420,0.83572074,220.09,219.47,0.1885062]
[1693499644621,0.83572074,220.11,219.46,0.1885062]
[1693499644819,0.83572074,220.1,219.47,0.1885062]
[1693499645015,0.83572074,220.09,219.48,0.1885062]
[1693499645219,0.83572074,220.11,219.45,0.1885062]
[1693499645415,0.83572074,220.1,219.46,0.1885062]
[1693499645615,0.83572074,220.1,219.45,0.1885062]
[1693499645822,0.83572074,220.09,219.46,0.1885062]
[1693499646021,0.83572074,220.08,219.44,0.1885062]
[1693499646225,0.83572074,220.1,219.45,0.1885062]
[1693499646416,0.83572074,220.09,219.44,0.1885062]
[1693499646621,0.83572074,220.1,219.45,0.1885062]
[1693499646920,0.83572074,220.09,219.46,0.1885062]
[1693499647120,0.83572074,220.11,219.43,0.1885062]
[1693499647320,0.83572074,220.11,219.36,0.14848875]
[1693499647321,0.0732123,220.05,219.44,0.1885062]
[1693499647622,0.83572074,220.04,219.45,0.1885062]
[1693499647820,0.83572074,220.06,219.35,0.1885062]
[1693499648023,0.83572074,220.05,219.36,0.1885062]
[1693499648223,0.83572074,220.06,219.35,0.1885062]
[1693499648424,0.83572074,220.05,219.36,0.1885062]
[1693499648624,0.83572074,220.04,219.37,0.1885062]
[1693499648825,0.83572074,220.06,219.36,0.1885062]
[1693499649028,0.83572074,220.05,219.37,0.1885062]
[1693499649224,0.83572074,220.07,219.34,0.26275057]
[1693499649423,0.83572074,220.07,219.35,0.1885062]
[1693499650025,0.83572074,220.08,219.35,0.1885062]
[1693499650225,0.83572074,220.07,219.35,0.1885062]
[1693499650424,0.83572074,220.06,219.35,0.1885062]
[1693499650727,0.83572074,220.05,219.35,0.1885062]
[1693499650927,0.1464246,220.11,219.35,0.1885062]
[1693499650928,0.90893304,220.08,219.35,0.1885062]
[1693499651124,0.83572074,220.07,219.36,0.1885062]
[1693499651427,0.83572074,220.07,219.37,0.1885062]
[1693499651628,0.83572074,220.07,219.34,0.26275057]
[1693499651829,0.83572074,220.08,219.35,0.1885062]
[1693499652029,0.83572074,220.07,219.35,0.1885062]
[1693499652230,0.83572074,220.08,219.35,0.1885062]
[1693499652426,0.83572074,220.07,219.35,0.26275057]
[1693499652622,0.83572074,220.07,219.36,0.1885062]
[1693499652826,0.83572074,220.06,219.36,0.1885062]
[1693499653024,0.83572074,220.06,219.35,0.26275057]
[1693499653224,0.83572074,220.07,219.36,0.1885062]
[1693499653526,0.83572074,220.06,219.36,0.1885062]
[1693499653728,0.83572074,220.05,219.36,0.1885062]
[1693499653923,0.83572074,220.04,219.36,0.1885062]
[1693499654128,0.83572074,220.08,219.36,0.1885062]
[1693499654332,0.83572074,220.07,219.36,0.26275057]
[1693499654528,0.0732123,220.08,219.37,0.26275057]
[1693499654831,0.83572074,220.07,219.38,0.1885062]
[1693499655028,0.90893304,220.08,219.38,0.1885062]
[1693499655232,0.83572074,220.07,219.38,0.1885062]
[1693499655432,0.90893304,220.07,219.37,0.1885062]
[1693499655632,0.83572074,220.06,219.37,0.1885062]
[1693499656331,0.90893304,220.07,219.37,0.1885062]
[1693499656635,0.83572074,220.06,219.37,0.26275057]
[1693499656933,0.83572074,220.06,219.38,0.1885062]
[1693499657138,0.83572074,220.06,219.37,0.26275057]
[1693499657333,0.83572074,220.06,219.38,0.1885062]
[1693499658033,0.83572074,220.07,219.38,0.1885062]
[1693499658229,0.83572074,220.06,219.38,0.1885062]
[1693499658435,0.83572074,220.07,219.38,0.1885062]
[1693499658636,0.0732123,220.08,219.38,0.1885062]
[1693499658637,0.90893304,220.06,219.38,0.1885062]
[1693499658836,0.83572074,220.05,219.38,0.1885062]
[1693499659836,0.90893304,220.05,219.38,0.1885062]
[1693499660039,0.83572074,220.04,219.37,0.1885062]
[1693499660637,0.90893304,220.04,219.38,0.07424437]
[1693499660838,0.83572074,220.03,219.39,0.1885062]
[1693499661541,0.0732123,220.02,219.39,0.1885062]
[1693499661839,0.90893304,220.01,219.39,0.1885062]
[1693499662139,0.90893304,220.01,219.38,0.1885062]
[1693499662140,0.83572074,220.0,219.38,0.1885062]
[1693499662338,0.90893304,220.0,219.4,0.1885062]
[1693499662539,0.90893304,219.99,219.41,0.1885062]
[1693499662733,0.83572074,219.98,219.35,0.1885062]
[1693499662937,0.83572074,219.98,219.36,0.1885062]
[1693499663239,0.83572074,219.97,219.36,0.26275057]
[1693499663435,0.83572074,219.99,219.37,0.1885062]
[1693499663634,0.83572074,219.96,219.38,0.07424437]
[1693499663838,0.83572074,219.95,219.39,0.07424437]
[1693499664035,0.83572074,219.95,219.4,0.07424437]
[1693499664238,0.0732123,220.01,219.41,0.1885062]
[1693499664432,0.1464246,220.04,219.41,0.1885062]
[1693499664433,0.83599572,220.0,219.43,0.07424437]
[1693499664638,0.0732123,220.0,219.44,0.1885062]
[1693499664836,0.90920802,219.99,219.44,0.1885062]
[1693499665040,0.90920802,219.99,219.45,0.1885062]
[1693499665234,0.83599572,219.98,219.42,0.1885062]
[1693499665434,0.90920802,219.98,219.46,0.1885062]
[1693499665639,0.0732123,219.97,219.43,0.1885062]
[1693499665842,0.90920802,219.97,219.47,0.1885062]
[1693499666038,0.1464246,219.99,219.33,0.14848875]
[1693499666039,0.83599572,219.96,219.44,0.1885062]
[1693499666235,0.83599572,219.97,219.48,0.1885062]
[1693499666439,0.83599572,219.95,219.43,0.07424437]
[1693499666643,0.83599572,219.94,219.44,0.1885062]
[1693499666942,0.83599572,219.94,219.45,0.1885062]
[1693499667140,0.83599572,219.94,219.43,0.1885062]
[1693499667335,0.90920802,219.94,219.44,0.1885062]
[1693499667539,0.90920802,219.93,219.43,0.26275057]
[1693499667737,0.83599572,219.92,219.44,0.1885062]
[1693499668042,0.0732123,219.85,219.44,0.1885062]
[1693499668249,0.0732123,219.85,219.37,0.1885062]
[1693499668543,0.48808202,219.9,219.45,0.1885062]
[1693499668544,0.0732123,219.79,219.45,0.1885062]
[1693499668843,0.0732123,219.76,219.27,0.07424437]
[1693499669045,0.0732123,219.75,219.28,0.19011924]
[1693499669241,0.2196369,219.75,219.28,0.19011924]
[1693499669435,1.05563262,219.75,219.26,0.19011924]
[1693499669641,0.0732123,219.72,219.27,0.19011924]
[1693499669845,0.0732123,219.76,219.29,0.07424437]
[1693499670045,0.83684011,219.75,219.29,0.07424437]
[1693499670246,0.0732123,219.73,219.29,0.07424437]
[1693499670543,0.0732123,219.73,219.3,0.19011924]
[1693499670744,0.0732123,219.75,219.3,0.19011924]
[1693499671141,0.0732123,219.82,219.31,0.07424437]
[1693499671538,0.83652559,219.81,219.36,0.07424437]
[1693499671744,0.0732123,219.89,219.39,0.07424437]
[1693499671945,0.83623599,219.88,219.39,0.07424437]
[1693499672147,0.90944829,219.89,219.4,0.19011924]
[1693499672342,0.0732123,219.9,219.4,0.19011924]
[1693499672543,0.83621752,219.89,219.4,0.26436361]
[1693499672843,0.83621752,219.9,219.41,0.19011924]
[1693499673045,0.0732123,219.91,219.41,0.19011924]
[1693499673238,0.83621237,219.9,219.41,0.19011924]
[1693499673444,0.0732123,219.89,219.41,0.19011924]
[1693499673646,0.90942467,219.88,219.42,0.19011924]
[1693499673844,0.83621237,219.87,219.39,0.19011924]
[1693499674049,0.83621237,219.87,219.4,0.19011924]
[1693499674241,0.83621237,219.87,219.39,0.19011924]
[1693499674441,0.83621237,219.87,219.4,0.19011924]
[1693499674739,0.83621237,219.87,219.41,0.19011924]
[1693499674944,0.83621237,219.87,219.38,0.26436361]
[1693499675240,0.0732123,219.9,219.39,0.26436361]
[1693499675441,0.0732123,219.91,219.4,0.26436361]
[1693499675642,0.48808202,219.96,219.17,0.98992501]
[1693499675643,0.83617661,219.9,219.41,0.26436361]
[1693499675938,0.0732123,219.93,219.42,0.26436361]
[1693499676138,0.90937225,219.92,219.43,0.19011924]
[1693499676443,0.83615995,219.91,219.43,0.19011924]
[1693499676643,0.90937225,219.91,219.44,0.19011924]
[1693499676844,0.83615995,219.9,219.41,0.19011924]
[1693499677144,0.0732123,219.92,219.42,0.26436361]
[1693499677346,0.90937692,219.91,219.43,0.19011924]
[1693499677645,0.83616462,219.9,219.43,0.19011924]
[1693499677845,0.83616462,219.9,219.44,0.19011924]
[1693499678146,0.83616462,219.9,219.45,0.19011924]
[1693499678342,0.83616462,219.9,219.46,0.19011924]
[1693499678548,0.0732123,219.92,219.47,0.19011924]
[1693499678847,0.90938238,219.91,219.48,0.19011924]
[1693499679051,0.0732123,219.91,219.44,0.26436361]
[1693499679342,0.0732123,219.95,219.47,0.07424437]
[1693499679542,0.0732123,219.9,219.48,0.19011924]
[1693499679749,0.0732123,219.88,219.43,0.19011924]
[1693499679950,0.0732123,219.88,219.44,0.19011924]
[1693499680250,0.0732123,219.89,219.45,0.19011924]
[1693499680547,0.0732123,219.9,219.46,0.19011924]
[1693499680748,0.0732123,219.89,219.45,0.19011924]
[1693499680947,2.44041012,220.03,219.37,0.14848875]
[1693499680948,0.0732123,219.88,219.46,0.19011924]
[1693499681247,0.0732123,219.88,219.47,0.19011924]
[1693499681443,0.0732123,219.87,219.44,0.19011924]
[1693499681752,0.0732123,219.86,219.45,0.19011924]
[1693499681941,0.0732123,219.86,219.43,0.19011924]
[1693499682146,0.0732123,219.85,219.44,0.19011924]
[1693499682341,0.0732123,219.85,219.43,0.19011924]
[1693499682544,0.0732123,219.85,219.44,0.19011924]
[1693499682743,0.0732123,219.86,219.43,0.19011924]
[1693499682944,0.0732123,219.86,219.44,0.19011924]
[1693499683150,0.0732123,219.85,219.42,0.19011924]
[1693499683349,0.0732123,219.85,219.43,0.19011924]
[1693499683651,0.0732123,219.85,219.44,0.19011924]
[1693499683851,0.0732123,219.86,219.42,0.07424437]
[1693499684050,0.0732123,219.87,219.43,0.19011924]
[1693499684250,0.0732123,219.87,219.43,0.26436361]
[1693499684453,0.0732123,219.87,219.44,0.19011924]
[1693499684847,0.0732123,219.88,219.44,0.26436361]
[1693499685046,0.0732123,219.89,219.45,0.26436361]
[1693499685254,0.0732123,219.9,219.46,0.19011924]
[1693499686351,0.0732123,219.9,219.46,0.26436361]
[1693499686553,0.0732123,219.9,219.47,0.19011924]
[1693499686951,0.0732123,219.89,219.47,0.19011924]
[1693499687151,0.0732123,219.9,219.46,0.26436361]
[1693499687352,0.0732123,219.9,219.47,0.19011924]
[1693499688347,0.0732123,219.94,219.51,0.07424437]
[1693499688551,0.0732123,219.94,219.52,0.19011924]
[1693499688847,0.0732123,219.94,219.53,0.19011924]
[1693499689046,0.0732123,219.94,219.51,0.19011924]
[1693499689249,0.0732123,219.94,219.52,0.19011924]
[1693499689452,0.0732123,219.94,219.5,0.07424437]
[1693499689453,0.0732123,219.94,219.51,0.19011924]
[1693499689752,0.0732123,219.94,219.52,0.19011924]
[1693499689953,0.0732123,219.94,219.51,0.26436361]
[1693499690156,0.0732123,219.94,219.52,0.19011924]
[1693499690351,0.0732123,219.95,219.52,0.26436361]
[1693499690552,0.0732123,219.95,219.53,0.19011924]
[1693499690753,0.0732123,219.96,219.53,0.19011924]
[1693499690951,0.0732123,219.96,219.52,0.19011924]
[1693499691151,0.0732123,219.95,219.53,0.19011924]
[1693499691359,0.0732123,219.95,219.52,0.19011924]
[1693499691657,0.0732123,219.95,219.53,0.19011924]
[1693499691858,0.0732123,219.95,219.52,0.19011924]
[1693499692059,0.0732123,219.95,219.53,0.19011924]
[1693499692252,0.0732123,219.95,219.54,0.19011924]
[1693499692452,0.0732123,219.96,219.55,0.19011924]
[1693499692655,0.0732123,219.95,219.56,0.19011924]
[1693499692851,0.0732123,219.96,219.57,0.19011924]
[1693499693056,0.0732123,219.96,219.52,0.19011924]
[1693499693256,0.0732123,219.96,219.53,0.19011924]
[1693499693557,0.0732123,219.97,219.54,0.19011924]
[1693499693758,0.0732123,219.97,219.53,0.19011924]
[1693499693957,0.0732123,219.97,219.54,0.19011924]
[1693499694155,0.0732123,219.97,219.53,0.19011924]
[1693499694352,0.0732123,219.97,219.54,0.19011924]
[1693499694557,0.0732123,219.98,219.53,0.19011924]
[1693499694754,0.0732123,219.97,219.54,0.19011924]
[1693499695058,0.0732123,219.98,219.55,0.19011924]
[1693499695361,0.0732123,219.97,219.56,0.19011924]
[1693499695660,0.0732123,219.98,219.57,0.19011924]
[1693499695958,0.0732123,219.98,219.58,0.19011924]
[1693499696159,0.0732123,219.98,219.52,0.19011924]
[1693499696359,0.0732123,219.98,219.53,0.19011924]
[1693499696560,0.0732123,219.98,219.54,0.19011924]
[1693499696861,0.0732123,219.99,219.55,0.19011924]
[1693499697060,0.83590393,219.98,219.52,0.19011924]
[1693499697263,0.90911623,219.98,219.53,0.19011924]
[1693499697554,0.83590393,219.97,219.54,0.19011924]
[1693499697753,0.83590393,219.97,219.5,0.07424437]
[1693499697754,0.83590393,219.97,219.51,0.19011924]
[1693499697960,0.0732123,219.98,219.52,0.19011924]
[1693499698553,0.8359446,219.97,219.52,0.19011924]
[1693499698756,0.8359446,219.97,219.51,0.19011924]
[1693499699052,0.8359446,219.97,219.52,0.19011924]
[1693499699256,0.8359446,219.97,219.51,0.19011924]
[1693499699455,0.0732123,219.98,219.51,0.19011924]
[1693499699854,0.0732123,219.99,219.51,0.19011924]
[1693499700054,0.90914407,219.98,219.51,0.19011924]
[1693499700361,0.0732123,219.99,219.51,0.26436361]
[1693499700557,0.83592749,219.98,219.52,0.19011924]
[1693499700761,0.83592749,219.98,219.51,0.19011924]
[1693499700963,0.83592749,219.98,219.52,0.19011924]
[1693499701259,0.83592749,219.98,219.26,0.98992501]
[1693499701260,0.0732123,219.97,219.53,0.19011924]
[1693499701463,0.83592749,219.96,219.54,0.19011924]
[1693499701762,0.0732123,219.98,219.55,0.19011924]
[1693499702057,0.0732123,219.99,219.5,0.07424437]
[1693499702261,0.83591118,219.98,219.51,0.19011924]
[1693499702455,0.0732123,220.0,219.51,0.19011924]
[1693499702655,0.83591454,219.99,219.51,0.19011924]
[1693499703062,0.83591454,220.0,219.51,0.19011924]
[1693499704263,0.90912684,220.0,219.51,0.19011924]
[1693499704455,0.90912684,219.99,219.5,0.19011924]
[1693499704660,0.83591454,219.98,219.51,0.19011924]
[1693499704859,0.83591454,219.98,219.49,0.19011924]
[1693499705058,0.83591454,219.98,219.49,0.26436361]
[1693499705258,0.83591454,219.99,219.5,0.19011924]
[1693499705459,0.83591454,219.98,219.5,0.19011924]
[1693499705859,0.83591454,219.98,219.52,0.07424437]
[1693499705860,0.0732123,219.96,219.52,0.07424437]
[1693499706058,0.0732123,219.96,219.53,0.19011924]
[1693499706458,0.0732123,219.96,219.52,0.19011924]
[1693499706762,0.0732123,219.96,219.53,0.19011924]
[1693499707158,0.1464246,219.93,219.53,0.19011924]
[1693499707458,0.0732123,219.9,219.54,0.19011924]
[1693499707761,0.0732123,219.89,219.55,0.19011924]
[1693499707962,0.0732123,219.89,219.47,0.19011924]
[1693499708160,0.0732123,219.88,219.48,0.19011924]
[1693499708360,0.0732123,219.88,219.46,0.19011924]
[1693499708562,0.0732123,219.88,219.47,0.19011924]
[1693499708756,0.0732123,219.87,219.46,0.19011924]
[1693499708962,0.0732123,219.87,219.47,0.19011924]
[1693499709164,0.0732123,219.87,219.48,0.19011924]
[1693499709362,0.0732123,219.87,219.49,0.19011924]
[1693499709563,0.0732123,219.87,219.44,0.19011924]
[1693499709862,0.97616405,219.94,219.43,0.07424437]
[1693499709863,0.0732123,219.86,219.45,0.19011924]
[1693499710058,0.0732123,219.86,219.44,0.19011924]
[1693499710555,0.0732123,219.87,219.44,0.26436361]
[1693499710759,0.0732123,219.87,219.45,0.19011924]
[1693499710964,0.0732123,219.84,219.45,0.19011924]
[1693499711166,0.0732123,219.84,219.43,0.19011924]
[1693499711462,0.0732123,219.85,219.44,0.19011924]
[1693499711660,0.0732123,219.86,219.42,0.19011924]
[1693499711863,0.0732123,219.81,219.43,0.19011924]
[1693499712165,0.0732123,219.8,219.44,0.19011924]
[1693499712464,0.0732123,219.8,219.36,0.19011924]
[1693499713059,0.0732123,219.82,219.36,0.19011924]
[1693499713365,0.0732123,219.83,219.37,0.19011924]
[1693499713565,0.90972366,219.82,219.35,0.19011924]
[1693499713765,0.83651136,219.81,219.36,0.19011924]
[1693499713964,0.83651136,219.81,219.33,0.07424437]
[1693499713965,0.90972366,219.82,219.34,0.19011924]
[1693499714167,0.83651099,219.81,219.35,0.19011924]
[1693499714465,0.83651099,219.81,219.36,0.19011924]
[1693499714667,0.83651099,219.81,219.34,0.19011924]
[1693499714866,0.83651099,219.81,219.35,0.19011924]
[1693499715063,0.90972329,219.81,219.36,0.19011924]
[1693499715262,0.83651099,219.8,219.37,0.19011924]
[1693499715460,0.83651099,219.82,219.37,0.19011924]
[1693499715661,0.0732123,219.83,219.38,0.19011924]
[1693499715857,0.83654998,219.82,219.3,0.26436361]
[1693499716065,0.83654998,219.83,219.31,0.19011924]
[1693499716268,0.83654998,219.82,219.31,0.19011924]
[1693499716459,0.83654998,219.82,219.3,0.19011924]
[1693499717264,0.90976228,219.84,219.29,0.19011924]
[1693499717464,0.83654998,219.83,219.3,0.19011924]
[1693499717865,0.83654998,219.83,219.31,0.19011924]
[1693499718065,0.83654998,219.83,219.27,0.26436361]
[1693499718268,0.83654998,219.83,219.28,0.19011924]
[1693499718664,0.83654998,219.84,219.28,0.19011924]
[1693499718864,0.83654998,219.83,219.28,0.26436361]
[1693499719163,0.97616405,219.93,218.62,7.94902043]
[1693499719164,0.83654998,219.85,219.29,0.19011924]
[1693499719362,0.83654998,219.84,219.29,0.19011924]
[1693499719668,0.83654998,219.83,219.28,0.19011924]
[1693499719863,0.0732123,219.87,219.27,0.07424437]
[1693499719864,0.83654998,219.86,219.3,0.19011924]
[1693499720068,0.83654998,219.85,219.31,0.19011924]
[1693499720363,0.83654998,219.84,219.32,0.19011924]
[1693499720568,0.83654998,219.83,219.33,0.19011924]
[1693499720762,0.83654998,219.87,219.29,0.19011924]
[1693499720961,0.83654998,219.86,219.3,0.19011924]
[1693499721163,0.83654998,219.87,219.32,0.07424437]
[1693499721367,0.83654998,219.92,219.33,0.26436361]
[1693499721562,0.83624871,219.91,219.34,0.19011924]
[1693499721766,0.83624871,219.93,219.34,0.19011924]
[1693499721964,0.83624871,219.93,219.35,0.19011924]
[1693499722170,0.83624871,219.93,219.34,0.19011924]
[1693499722369,0.83624871,219.93,219.35,0.19011924]
[1693499722570,0.83624871,219.93,219.33,0.19011924]
[1693499722571,0.90946101,219.93,219.33,0.19011924]
[1693499722774,0.0732123,219.88,219.34,0.19011924]
[1693499722970,0.83624871,219.87,219.27,0.19011924]
[1693499723273,0.83624871,219.87,219.28,0.19011924]
[1693499723569,0.0732123,219.89,219.29,0.19011924]
[1693499723570,0.83624871,219.86,219.29,0.19011924]
[1693499723769,0.83624871,219.88,219.26,0.19011924]
[1693499724670,0.90946101,219.88,219.26,0.19011924]
[1693499724870,0.83624871,219.87,219.25,0.26436361]
[1693499725170,0.83624871,219.87,217.34,15.8388001]
[1693499725171,0.83624871,219.87,219.26,0.19011924]
[1693499725571,0.83624871,219.87,219.27,0.19011924]
[1693499725771,0.83624871,219.86,219.25,0.19011924]
[1693499726074,0.83624871,219.85,219.26,0.19011924]
[1693499726264,0.90946101,219.88,219.25,0.19011924]
[1693499726572,0.90946101,219.87,219.26,0.19011924]
[1693499726772,0.83624871,219.86,219.23,0.19011924]
[1693499727565,0.83624871,219.87,219.23,0.19011924]
[1693499728771,0.83624871,219.87,219.23,0.26436361]
[1693499729069,0.83624871,219.88,219.24,0.19011924]
[1693499729270,0.83624871,219.87,219.24,0.19011924]
[1693499729468,0.83624871,219.88,219.24,0.19011924]
[1693499729673,0.83624871,219.87,219.23,0.26436361]
[1693499729873,0.83624871,219.87,219.24,0.19011924]
[1693499730373,0.83624871,219.87,219.23,0.26436361]
[1693499730570,0.83624871,219.87,219.24,0.19011924]
[1693499730972,0.83624871,219.87,219.24,0.26436361]
[1693499731173,0.83624871,219.87,219.25,0.19011924]
[1693499731565,0.83356844,219.87,219.25,0.19011924]
[1693499732472,0.83356844,219.87,219.24,0.26436361]
[1693499732677,0.90678074,219.87,219.25,0.19011924]
[1693499732872,0.83356844,219.86,219.25,0.19011924]
[1693499733672,0.90678074,219.86,219.25,0.26436361]
[1693499733871,0.83356844,219.85,219.26,0.19011924]
[1693499734671,0.83356844,219.84,219.26,0.26436361]
[1693499734871,0.83356844,219.86,219.27,0.19011924]
[1693499735081,0.83356844,219.83,219.27,0.19011924]
[1693499735368,0.83356844,219.82,219.27,0.19011924]
[1693499735575,0.83356844,219.87,219.28,0.07424437]
[1693499735774,0.83356844,219.87,219.29,0.19011924]
[1693499735977,0.83356844,219.87,219.29,0.26436361]
[1693499736274,0.83356844,219.87,219.3,0.19011924]
[1693499736471,0.83356844,219.86,219.29,0.19011924]
[1693499736676,0.83356844,219.86,219.28,0.07424437]
[1693499736677,0.83356844,219.87,219.3,0.19011924]
[1693499736868,0.83356844,219.86,219.29,0.19011924]
[1693499737173,0.83356844,219.85,219.29,0.26436361]
[1693499737373,0.90678074,219.88,219.3,0.19011924]
[1693499737573,0.90678074,219.87,219.3,0.26436361]
[1693499737770,0.90678074,219.86,219.31,0.19011924]
[1693499737971,0.83356844,219.85,219.31,0.19011924]
[1693499738170,0.90678074,219.85,219.31,0.19011924]
[1693499738675,0.83356844,219.84,219.32,0.19011924]
[1693499738870,0.83356844,219.84,219.33,0.19011924]
[1693499739076,0.0732123,219.83,219.32,0.07424437]
[1693499739374,0.83356844,219.82,219.33,0.19011924]
[1693499739870,0.90678074,219.82,219.33,0.19011924]
[1693499740070,0.83356844,219.81,219.33,0.19011924]
[1693499740273,0.0732123,219.8,219.35,0.07424437]
[1693499740472,0.0732123,219.8,219.36,0.26436361]
[1693499740671,0.0732123,219.8,219.37,0.19011924]
[1693499741275,0.0732123,219.8,219.37,0.26436361]
[1693499741471,0.0732123,219.81,219.38,0.19011924]
[1693499741678,0.0732123,219.82,219.38,0.26436361]
[1693499741876,0.0732123,219.82,219.39,0.19011924]
[1693499742077,0.0732123,219.77,219.43,0.07424437]
[1693499742377,0.0732123,219.77,219.44,0.19011924]
[1693499742978,2.44041012,219.91,219.44,0.19011924]
[1693499742979,0.0732123,219.81,219.47,0.07424437]
[1693499743177,0.0732123,219.82,219.48,0.19011924]
[1693499743373,0.0732123,219.82,219.47,0.19011924]
[1693499743578,0.0732123,219.82,219.48,0.19011924]
[1693499743777,0.0732123,219.82,219.47,0.19011924]
[1693499743978,0.0732123,219.82,219.48,0.07424437]
[1693499744180,0.0732123,219.83,219.49,0.26436361]
[1693499744375,0.0732123,219.83,219.5,0.19011924]
[1693499745280,0.0732123,219.85,219.5,0.19011924]
[1693499745479,0.0732123,219.84,219.48,0.19011924]
[1693499745679,0.0732123,219.85,219.49,0.19011924]
[1693499745876,0.0732123,219.84,219.5,0.19011924]
[1693499746072,0.97616405,219.92,219.48,0.19011924]
[1693499746073,0.0732123,219.83,219.48,0.19011924]
[1693499746378,0.0732123,219.83,219.49,0.19011924]
[1693499746581,0.0732123,219.83,219.47,0.19011924]
[1693499746778,0.0732123,219.82,219.48,0.19011924]
[1693499746978,0.0732123,219.82,219.47,0.19011924]
[1693499747178,0.0732123,219.83,219.46,0.19011924]
[1693499747374,0.0732123,219.83,219.47,0.19011924]
[1693499747577,0.0732123,219.83,219.48,0.19011924]
[1693499747779,0.0732123,219.83,219.46,0.19011924]
[1693499747974,0.0732123,219.84,219.47,0.19011924]
[1693499748180,0.0732123,219.83,219.48,0.19011924]
[1693499748379,0.0732123,219.83,219.46,0.19011924]
[1693499748579,0.0732123,219.84,219.47,0.19011924]
[1693499748780,0.0732123,219.84,219.48,0.19011924]
[1693499748977,0.0732123,219.84,219.46,0.19011924]
[1693499749184,0.0732123,219.84,219.47,0.19011924]
[1693499749382,0.0732123,219.85,219.46,0.19011924]
[1693499750785,0.0732123,219.86,219.46,0.26436361]
[1693499750985,0.0732123,219.87,219.47,0.19011924]
[1693499751186,0.0732123,219.86,219.46,0.19011924]
[1693499752287,0.0732123,219.87,219.45,0.19011924]
[1693499752486,0.0732123,219.87,219.46,0.19011924]
[1693499752685,0.0732123,219.87,219.45,0.19011924]
[1693499752884,0.0732123,219.87,219.47,0.19011924]
[1693499753079,0.0732123,219.87,219.48,0.19011924]
[1693499753286,0.0732123,219.87,219.49,0.19011924]
[1693499753479,0.0732123,219.87,219.44,0.07424437]
[1693499753480,0.0732123,219.87,219.45,0.19011924]
[1693499753786,0.0732123,219.88,219.46,0.19011924]
[1693499753981,0.0732123,219.88,219.45,0.19011924]
[1693499754187,0.0732123,219.88,219.46,0.19011924]
[1693499755187,0.0732123,219.89,219.46,0.19011924]
[1693499755387,0.0732123,219.95,219.51,0.07424437]
[1693499755587,0.0732123,219.95,219.52,0.19011924]
[1693499755782,0.0732123,219.96,219.52,0.19011924]
[1693499756488,0.0732123,219.95,219.52,0.19011924]
[1693499756885,0.0732123,219.96,219.52,0.19011924]
[1693499757082,0.0732123,219.95,219.52,0.19011924]
[1693499757288,0.0732123,219.96,219.51,0.19011924]
[1693499757490,0.83599512,219.95,219.52,0.19011924]
[1693499757688,0.83599512,219.95,219.48,0.19011924]
[1693499758292,0.0732123,219.96,219.48,0.19011924]
[1693499758995,0.0732123,219.97,219.48,0.19011924]
[1693499759193,0.83599078,219.96,219.47,0.26436361]
[1693499759391,0.83599078,219.96,219.48,0.19011924]
[1693499759587,0.83599078,219.97,219.48,0.19011924]
[1693499760689,0.83599078,219.97,219.48,0.26436361]
[1693499760889,0.83599078,219.98,219.49,0.19011924]
[1693499761091,0.83599078,219.97,219.49,0.19011924]
[1693499761290,0.0732123,219.93,219.49,0.19011924]
[1693499761491,0.0732123,219.93,219.19,0.98992501]
[1693499761492,0.90920308,219.92,219.5,0.19011924]
[1693499761687,0.83599078,219.91,219.42,0.19011924]
[1693499761987,0.83599078,219.91,219.51,0.19011924]
[1693499762191,0.90920308,219.91,219.43,0.19011924]
[1693499762388,0.83599078,219.9,219.44,0.19011924]
[1693499762586,0.83599078,219.9,219.42,0.07424437]
[1693499762587,0.83599078,219.9,219.43,0.19011924]
[1693499762793,0.83599078,219.9,219.44,0.19011924]
[1693499762993,0.83599078,219.9,219.42,0.19011924]
[1693499763191,0.90920308,219.9,219.42,0.19011924]
[1693499763395,0.90920308,219.89,219.42,0.19011924]
[1693499763595,0.83599078,219.88,219.41,0.19011924]
[1693499763795,0.90920308,219.88,219.42,0.19011924]
[1693499763991,0.0732123,219.83,219.4,0.19011924]
[1693499764191,0.0732123,219.83,219.41,0.19011924]
[1693499764395,0.0732123,219.83,219.42,0.19011924]
[1693499764592,0.0732123,219.84,219.36,0.19011924]
[1693499764794,0.836509,219.83,219.37,0.19011924]
[1693499765090,0.0732123,219.84,219.38,0.19011924]
[1693499765292,0.0732123,219.88,219.4,0.07424437]